[Event "FIDE Grand Swiss 2023"]
[Site "Villa Marina, Douglas, Isle of Man"]
[Date "2023.10.29"]
[Round "5.11"]
[White "Duda, Jan-Krzysztof"]
[Black "Bartel, Mateusz"]
[Result "1/2-1/2"]
[WhiteElo "2726"]
[BlackElo "2651"]
[EventDate "2023.10.25"]
[ECO "D31"]
[PlyCount "222"]
[BlackFideId "1112635"]
[TimeControl "40/100 + 20/50 + 15 + 30s/move"]
[WhiteFideId "1170546"]

1.d4 {[%clk 01:40:56] [%emt 00:00:03]} 1...d5 {[%clk 01:40:54] [%emt 00:00:05]} 
2.c4 {[%clk 01:41:21] [%emt 00:00:06]} 2...e6 {[%clk 01:41:20] [%emt 00:00:04]} 
3.Nc3 {[%clk 01:41:43] [%emt 00:00:08]} 3...c6 {[%clk 01:41:44] [%emt 00:00:05]} 
4.Nf3 {[%clk 01:40:01] [%emt 00:02:13]} 4...dxc4 {[%clk 01:42:06] [%emt
00:00:08]} 5.a4 {[%clk 01:39:49] [%emt 00:00:43]} 5...Bb4 {[%clk 01:42:11] [%emt
00:00:24]} 6.e3 {[%clk 01:39:58] [%emt 00:00:21]} 6...b5 {[%clk 01:42:27] [%emt
00:00:14]} 7.Bd2 {[%clk 01:40:14] [%emt 00:00:14]} 7...a5 {[%clk 01:42:08] [%emt
00:00:49]} 8.axb5 {[%clk 01:40:17] [%emt 00:00:27]} 8...Bxc3 {[%clk 01:42:31]
[%emt 00:00:07]} 9.Bxc3 {[%clk 01:40:41] [%emt 00:00:05]} 9...cxb5 {[%clk
01:42:55] [%emt 00:00:06]} 10.b3 {[%clk 01:41:07] [%emt 00:00:05]} 10...Bb7 
{[%clk 01:43:18] [%emt 00:00:07]} 11.bxc4 {[%clk 01:41:34] [%emt 00:00:04]} 
11...b4 {[%clk 01:43:41] [%emt 00:00:06]} 12.Bb2 {[%clk 01:42:00] [%emt
00:00:03]} 12...Nf6 {[%clk 01:44:05] [%emt 00:00:06]} 13.Bd3 {[%clk 01:42:09]
[%emt 00:00:22]} 13...O-O {[%clk 01:44:12] [%emt 00:00:22]} 14.O-O {[%clk
01:41:29] [%emt 00:01:11]} 14...Nbd7 {[%clk 01:44:36] [%emt 00:00:06]} 15.Nd2 
{[%clk 01:39:54] [%emt 00:02:05]} 15...Qc7 {[%clk 01:43:02] [%emt 00:02:04]} 
16.Bc2 {[%clk 01:39:44] [%emt 00:00:40]} 16...Rfb8 {[%clk 01:40:21] [%emt
00:03:11]} 17.h3 {[%clk 01:29:25] [%emt 00:10:49]} 17...Bc6 {[%clk 01:36:10]
[%emt 00:04:40]} 18.e4 {[%clk 01:24:02] [%emt 00:05:54]} 18...b3 {[%clk
01:36:03] [%emt 00:00:37]} 19.Bb1 {[%clk 01:23:19] [%emt 00:01:13]} 19...e5 
{[%clk 01:21:51] [%emt 00:14:42]} 20.d5 {[%clk 00:58:30] [%emt 00:25:19]} 
20...Bb7 {[%clk 01:19:57] [%emt 00:02:23]} 21.f4 {[%clk 00:58:57] [%emt
00:00:04]} 21...a4 {[%clk 01:17:34] [%emt 00:02:53]} 22.Qf3 {[%clk 00:56:00]
[%emt 00:03:26]} 22...Re8 {[%clk 01:13:36] [%emt 00:04:29]} 23.Ra3 {[%clk
00:39:24] [%emt 00:17:06]} 23...Ra6 {[%clk 01:00:56] [%emt 00:13:09]} 24.Qf2 
{[%clk 00:33:11] [%emt 00:06:44]} 24...exf4 {[%clk 00:58:34] [%emt 00:02:51]} 
25.Qxf4 {[%clk 00:27:41] [%emt 00:06:01]} 25...Qxf4 {[%clk 00:55:16] [%emt
00:03:48]} 26.Rxf4 {[%clk 00:28:05] [%emt 00:00:05]} 26...Nc5 {[%clk 00:55:26]
[%emt 00:00:21]} 27.Kf2 {[%clk 00:21:17] [%emt 00:07:17]} 27...Nfd7 {[%clk
00:54:39] [%emt 00:01:17]} 28.Bd4 {[%clk 00:20:31] [%emt 00:01:18]} 28...f6 
{[%clk 00:53:10] [%emt 00:01:58]} 29.Ke3 {[%clk 00:20:14] [%emt 00:00:47]} 
29...Raa8 {[%clk 00:44:01] [%emt 00:09:39]} 30.Bd3 {[%clk 00:17:14] [%emt
00:03:29]} 30...Kf7 {[%clk 00:33:57] [%emt 00:10:35]} 31.Rf1 {[%clk 00:12:02]
[%emt 00:05:41]} 31...Ke7 {[%clk 00:33:44] [%emt 00:00:43]} 32.Bc3 {[%clk
00:10:17] [%emt 00:02:16]} 32...Kd6 {[%clk 00:27:10] [%emt 00:07:04]} 33.Bb4 
{[%clk 00:08:50] [%emt 00:01:57]} 33...Reb8 {[%clk 00:26:59] [%emt 00:00:41]} 
34.e5+ {[%clk 00:07:03] [%emt 00:02:17]} 34...Kc7 {[%clk 00:27:15] [%emt
00:00:13]} 35.Bxh7 {[%clk 00:06:58] [%emt 00:00:37]} 35...fxe5 {[%clk 00:26:12]
[%emt 00:01:31]} 36.Bf5 {[%clk 00:04:47] [%emt 00:02:41]} 36...Bc8 {[%clk
00:21:27] [%emt 00:05:16]} 37.Bc3 {[%clk 00:04:49] [%emt 00:00:27]} 37...Kd6 
{[%clk 00:21:35] [%emt 00:00:23]} 38.Nf3 {[%clk 00:02:55] [%emt 00:02:24]} 
38...Ba6 {[%clk 00:17:49] [%emt 00:04:16]} 39.Bxd7 {[%clk 00:02:05] [%emt
00:01:20]} 39...Bxc4 {[%clk 00:15:38] [%emt 00:02:41]} 40.Bxe5+ {[%clk 00:00:35]
[%emt 00:02:01]} 40...Kxd7 {[%clk 00:15:48] [%emt 00:00:19]} 41.Rc1 {[%clk
00:48:51] [%emt 00:02:14]} 41...b2 {[%clk 00:41:48] [%emt 00:24:29]} 42.Bxb2 
{[%clk 00:42:19] [%emt 00:07:02]} 42...Rxb2 {[%clk 00:42:01] [%emt 00:00:18]} 
43.Ne5+ {[%clk 00:42:44] [%emt 00:00:05]} 43...Ke7 {[%clk 00:42:23] [%emt
00:00:07]} 44.Nxc4 {[%clk 00:39:11] [%emt 00:04:04]} 44...Rxg2 {[%clk 00:41:02]
[%emt 00:01:50]} 45.d6+ {[%clk 00:38:50] [%emt 00:00:52]} 45...Kf6 {[%clk
00:35:17] [%emt 00:06:14]} 46.Rf1+ {[%clk 00:35:56] [%emt 00:03:25]} 46...Kg6 
{[%clk 00:35:43] [%emt 00:00:03]} 47.Kd4 {[%clk 00:33:42] [%emt 00:02:44]} 
47...Nb3+ {[%clk 00:22:54] [%emt 00:13:19]} 48.Kd5 {[%clk 00:32:56] [%emt
00:01:17]} 48...Rg5+ {[%clk 00:23:14] [%emt 00:00:10]} 49.Ne5+ {[%clk 00:31:39]
[%emt 00:01:47]} 49...Kh7 {[%clk 00:23:41] [%emt 00:00:02]} 50.d7 {[%clk
00:31:23] [%emt 00:00:47]} 50...Ra5+ {[%clk 00:23:14] [%emt 00:00:57]} 51.Kd6 
{[%clk 00:23:25] [%emt 00:08:28]} 51...Raxe5 {[%clk 00:15:24] [%emt 00:08:19]} 
52.d8=Q {[%clk 00:23:08] [%emt 00:00:47]} 52...Rd5+ {[%clk 00:15:49] [%emt
00:00:05]} 53.Kc7 {[%clk 00:23:33] [%emt 00:00:06]} 53...Rxd8 {[%clk 00:14:13]
[%emt 00:02:06]} 54.Kxd8 {[%clk 00:23:58] [%emt 00:00:04]} 54...Rd5+ {[%clk
00:13:33] [%emt 00:01:10]} 55.Ke7 {[%clk 00:23:41] [%emt 00:00:48]} 55...Rd4 
{[%clk 00:14:01] [%emt 00:00:02]} 56.Ra2 {[%clk 00:23:32] [%emt 00:00:39]} 
56...Nc5 {[%clk 00:10:16] [%emt 00:04:15]} 57.Rf5 {[%clk 00:21:07] [%emt
00:02:55]} 57...Ne4 {[%clk 00:05:49] [%emt 00:04:57]} 58.Rf4 {[%clk 00:16:16]
[%emt 00:05:20]} 58...Rb4 {[%clk 00:05:40] [%emt 00:00:40]} 59.Kd8 {[%clk
00:16:33] [%emt 00:00:13]} 59...Rd4+ {[%clk 00:04:52] [%emt 00:01:17]} 60.Ke7 
{[%clk 00:11:29] [%emt 00:05:34]} 60...Rb4 {[%clk 00:05:19] [%emt 00:00:04]} 
61.Rg4 {[%clk 00:10:02] [%emt 00:01:55]} 61...Kh6 {[%clk 00:01:11] [%emt
00:04:39]} 62.Rag2 {[%clk 00:08:28] [%emt 00:02:04]} 62...g5 {[%clk 00:14:32]
[%emt 00:02:09]} 63.Ke6 {[%clk 00:19:12] [%emt 00:04:46]} 63...a3 {[%clk
00:10:44] [%emt 00:04:18]} 64.Ra2 {[%clk 00:19:18] [%emt 00:00:25]} 64...Rb6+ 
{[%clk 00:07:41] [%emt 00:03:33]} 65.Ke5 {[%clk 00:18:55] [%emt 00:00:52]} 
65...Nf6 {[%clk 00:08:01] [%emt 00:00:10]} 66.Rg3 {[%clk 00:17:39] [%emt
00:01:47]} 66...Nh5 {[%clk 00:08:24] [%emt 00:00:06]} 67.Rgxa3 {[%clk 00:17:38]
[%emt 00:00:32]} 67...Nf4 {[%clk 00:08:29] [%emt 00:00:24]} 68.Ra8 {[%clk
00:15:33] [%emt 00:02:35]} 68...Kh5 {[%clk 00:05:14] [%emt 00:03:45]} 69.R2a3 
{[%clk 00:08:23] [%emt 00:07:40]} 69...Rb5+ {[%clk 00:04:17] [%emt 00:01:27]} 
70.Kd4 {[%clk 00:08:29] [%emt 00:00:24]} 70...Rb6 {[%clk 00:03:57] [%emt
00:00:51]} 71.Rg8 {[%clk 00:07:36] [%emt 00:01:22]} 71...Rg6 {[%clk 00:04:10]
[%emt 00:00:16]} 72.Rb8 {[%clk 00:07:24] [%emt 00:00:43]} 72...Re6 {[%clk
00:04:35] [%emt 00:00:06]} 73.Kc5 {[%clk 00:07:25] [%emt 00:00:29]} 73...Re5+ 
{[%clk 00:04:21] [%emt 00:00:44]} 74.Kd6 {[%clk 00:07:43] [%emt 00:00:11]} 
74...Re6+ {[%clk 00:04:47] [%emt 00:00:05]} 75.Kd7 {[%clk 00:08:00] [%emt
00:00:13]} 75...Rh6 {[%clk 00:03:27] [%emt 00:01:49]} 76.Ke7 {[%clk 00:07:23]
[%emt 00:01:07]} 76...Kh4 {[%clk 00:03:31] [%emt 00:00:26]} 77.Rb4 {[%clk
00:06:52] [%emt 00:01:01]} 77...Rh7+ {[%clk 00:03:03] [%emt 00:00:58]} 78.Kf6 
{[%clk 00:07:15] [%emt 00:00:07]} 78...Rh6+ {[%clk 00:03:15] [%emt 00:00:18]} 
79.Kf5 {[%clk 00:06:51] [%emt 00:00:54]} 79...Rh8 {[%clk 00:03:43] [%emt
00:00:02]} 80.Rbb3 {[%clk 00:06:43] [%emt 00:00:38]} 80...Rf8+ {[%clk 00:03:57]
[%emt 00:00:17]} 81.Ke5 {[%clk 00:06:59] [%emt 00:00:14]} 81...Ng6+ {[%clk
00:04:07] [%emt 00:00:19]} 82.Kd6 {[%clk 00:07:20] [%emt 00:00:10]} 82...Nf4 
{[%clk 00:04:12] [%emt 00:00:25]} 83.Rg3 {[%clk 00:07:44] [%emt 00:00:06]} 
83...Rf5 {[%clk 00:04:01] [%emt 00:00:41]} 84.Ke7 {[%clk 00:08:07] [%emt
00:00:06]} 84...Kh5 {[%clk 00:03:44] [%emt 00:00:47]} 85.Ra8 {[%clk 00:08:15]
[%emt 00:00:22]} 85...Ng6+ {[%clk 00:03:59] [%emt 00:00:15]} 86.Ke6 {[%clk
00:08:35] [%emt 00:00:10]} 86...Rb5 {[%clk 00:03:49] [%emt 00:00:41]} 87.Ra7 
{[%clk 00:08:29] [%emt 00:00:36]} 87...Nf4+ {[%clk 00:03:44] [%emt 00:00:34]} 
88.Kd6 {[%clk 00:08:29] [%emt 00:00:31]} 88...Rb6+ {[%clk 00:03:02] [%emt
00:01:12]} 89.Kc5 {[%clk 00:08:21] [%emt 00:00:37]} 89...Rb8 {[%clk 00:02:50]
[%emt 00:00:42]} 90.Rh7+ {[%clk 00:08:19] [%emt 00:00:32]} 90...Kg6 {[%clk
00:03:16] [%emt 00:00:05]} 91.Rh4 {[%clk 00:08:09] [%emt 00:00:39]} 91...Rf8 
{[%clk 00:01:14] [%emt 00:02:32]} 92.Kc4 {[%clk 00:08:17] [%emt 00:00:22]} 
92...Ne2 {[%clk 00:01:22] [%emt 00:00:23]} 93.Rgg4 {[%clk 00:08:11] [%emt
00:00:36]} 93...Rf4+ {[%clk 00:01:10] [%emt 00:00:41]} 94.Kd3 {[%clk 00:08:22]
[%emt 00:00:19]} 94...Rxg4 {[%clk 00:01:24] [%emt 00:00:16]} 95.Rxg4 {[%clk
00:08:45] [%emt 00:00:07]} 95...Nf4+ {[%clk 00:01:50] [%emt 00:00:03]} 96.Ke3 
{[%clk 00:09:02] [%emt 00:00:14]} 96...Nxh3 {[%clk 00:02:13] [%emt 00:00:08]} 
97.Rg2 {[%clk 00:09:28] [%emt 00:00:03]} 97...Nf4 {[%clk 00:02:22] [%emt
00:00:21]} 98.Ra2 {[%clk 00:09:55] [%emt 00:00:04]} 98...Kf5 {[%clk 00:02:48]
[%emt 00:00:03]} 99.Kf3 {[%clk 00:10:19] [%emt 00:00:06]} 99...Nh5 {[%clk
00:02:31] [%emt 00:00:48]} 100.Ra5+ {[%clk 00:10:44] [%emt 00:00:04]} 100...Kg6 
{[%clk 00:02:57] [%emt 00:00:04]} 101.Ra8 {[%clk 00:11:09] [%emt 00:00:06]} 
101...Nf6 {[%clk 00:03:15] [%emt 00:00:12]} 102.Kg2 {[%clk 00:11:34] [%emt
00:00:04]} 102...Kf5 {[%clk 00:03:39] [%emt 00:00:05]} 103.Ra1 {[%clk 00:11:55]
[%emt 00:00:10]} 103...Kg4 {[%clk 00:03:54] [%emt 00:00:15]} 104.Rg1 {[%clk
00:12:20] [%emt 00:00:05]} 104...Nh5 {[%clk 00:04:15] [%emt 00:00:09]} 105.Kf1+ 
{[%clk 00:12:41] [%emt 00:00:09]} 105...Kf5 {[%clk 00:04:33] [%emt 00:00:13]} 
106.Kf2 {[%clk 00:13:04] [%emt 00:00:06]} 106...Nf6 {[%clk 00:04:52] [%emt
00:00:11]} 107.Kf3 {[%clk 00:13:30] [%emt 00:00:04]} 107...Kg6 {[%clk 00:05:18]
[%emt 00:00:04]} 108.Rg2 {[%clk 00:13:55] [%emt 00:00:05]} 108...Kf5 {[%clk
00:05:45] [%emt 00:00:04]} 109.Ke3 {[%clk 00:14:19] [%emt 00:00:06]} 109...Nd5+ 
{[%clk 00:06:02] [%emt 00:00:13]} 110.Kd4 {[%clk 00:14:44] [%emt 00:00:05]} 
110...Nf4 {[%clk 00:06:01] [%emt 00:00:30]} 111.Rxg5+ {[%clk 00:15:11] [%emt
00:00:03]} 111...Kxg5 {[%clk 00:06:26] [%emt 00:00:05]} 1/2-1/2

[Event "FIDE Grand Swiss 2023"]
[Site "Villa Marina, Douglas, Isle of Man"]
[Date "2023.10.29"]
[Round "5.12"]
[White "Melkumyan, Hrant"]
[Black "Abdusattorov, Nodirbek"]
[Result "1/2-1/2"]
[WhiteElo "2650"]
[BlackElo "2716"]
[EventDate "2023.10.25"]
[ECO "D27"]
[PlyCount "60"]
[BlackFideId "14204118"]
[TimeControl "40/100 + 20/50 + 15 + 30s/move"]
[WhiteFideId "13302485"]

1.d4 {[%clk 01:40:55] [%emt 00:00:04]} 1...d5 {[%clk 01:40:44] [%emt 00:00:17]} 
2.c4 {[%clk 01:41:14] [%emt 00:00:10]} 2...dxc4 {[%clk 01:41:08] [%emt
00:00:07]} 3.e3 {[%clk 01:41:28] [%emt 00:00:15]} 3...Nf6 {[%clk 01:41:28] [%emt
00:00:09]} 4.Bxc4 {[%clk 01:41:48] [%emt 00:00:10]} 4...e6 {[%clk 01:41:55]
[%emt 00:00:04]} 5.Nf3 {[%clk 01:42:00] [%emt 00:00:18]} 5...a6 {[%clk 01:42:19]
[%emt 00:00:07]} 6.O-O {[%clk 01:42:03] [%emt 00:00:26]} 6...c5 {[%clk 01:42:45]
[%emt 00:00:05]} 7.dxc5 {[%clk 01:41:18] [%emt 00:01:14]} 7...Bxc5 {[%clk
01:43:02] [%emt 00:00:14]} 8.Qxd8+ {[%clk 01:41:38] [%emt 00:00:09]} 8...Kxd8 
{[%clk 01:43:25] [%emt 00:00:07]} 9.Be2 {[%clk 01:41:59] [%emt 00:00:08]} 
9...Ke7 {[%clk 01:43:46] [%emt 00:00:10]} 10.Nc3 {[%clk 01:42:07] [%emt
00:00:22]} 10...Rd8 {[%clk 01:43:12] [%emt 00:01:04]} 11.Nd2 {[%clk 01:40:07]
[%emt 00:02:30]} 11...Nc6 {[%clk 01:43:29] [%emt 00:00:14]} 12.Nde4 {[%clk
01:36:08] [%emt 00:04:28]} 12...Bb4 {[%clk 01:43:54] [%emt 00:00:06]} 13.a3 
{[%clk 01:34:23] [%emt 00:02:14]} 13...Bxc3 {[%clk 01:44:21] [%emt 00:00:04]} 
14.Nxc3 {[%clk 01:34:38] [%emt 00:00:14]} 14...Na5 {[%clk 01:44:49] [%emt
00:00:02]} 15.b4 {[%clk 01:31:16] [%emt 00:03:52]} 15...Nb3 {[%clk 01:45:16]
[%emt 00:00:04]} 16.Rb1 {[%clk 01:31:40] [%emt 00:00:06]} 16...Nxc1 {[%clk
01:45:43] [%emt 00:00:03]} 17.Rfxc1 {[%clk 01:32:02] [%emt 00:00:07]} 17...Bd7 
{[%clk 01:46:09] [%emt 00:00:05]} 18.Bf3 {[%clk 01:31:22] [%emt 00:01:09]} 
18...Rab8 {[%clk 01:46:31] [%emt 00:00:08]} 19.Ne4 {[%clk 01:28:54] [%emt
00:02:57]} 19...Bc6 {[%clk 01:43:22] [%emt 00:03:40]} 20.Nxf6 {[%clk 01:28:56]
[%emt 00:00:28]} 20...Bxf3 {[%clk 01:43:47] [%emt 00:00:06]} 21.gxf3 {[%clk
01:29:10] [%emt 00:00:15]} 21...gxf6 {[%clk 01:43:41] [%emt 00:00:37]} 22.b5 
{[%clk 01:27:40] [%emt 00:02:00]} 22...axb5 {[%clk 01:40:23] [%emt 00:03:48]} 
23.Rxb5 {[%clk 01:27:45] [%emt 00:00:24]} 23...Rd7 {[%clk 01:40:47] [%emt
00:00:06]} 24.Rcb1 {[%clk 01:28:07] [%emt 00:00:09]} 24...f5 {[%clk 01:40:59]
[%emt 00:00:18]} 25.f4 {[%clk 01:27:33] [%emt 00:01:03]} 25...Kf6 {[%clk
01:41:23] [%emt 00:00:06]} 26.Kg2 {[%clk 01:27:50] [%emt 00:00:12]} 26...Ra8 
{[%clk 01:41:51] [%emt 00:00:03]} 27.Rxb7 {[%clk 01:28:11] [%emt 00:00:10]} 
27...Rxb7 {[%clk 01:42:18] [%emt 00:00:03]} 28.Rxb7 {[%clk 01:28:33] [%emt
00:00:07]} 28...Rxa3 {[%clk 01:42:47] [%emt 00:00:02]} 29.Kf3 {[%clk 01:28:55]
[%emt 00:00:08]} 29...Ra2 {[%clk 01:43:13] [%emt 00:00:04]} 30.h3 {[%clk
01:29:17] [%emt 00:00:07]} 30...h6 {[%clk 01:43:39] [%emt 00:00:04]} 1/2-1/2

[Event "FIDE Grand Swiss 2023"]
[Site "Villa Marina, Douglas, Isle of Man"]
[Date "2023.10.29"]
[Round "5.13"]
[White "Cheparinov, Ivan"]
[Black "Vitiugov, Nikita"]
[Result "1/2-1/2"]
[WhiteElo "2658"]
[BlackElo "2711"]
[EventDate "2023.10.25"]
[ECO "C88"]
[PlyCount "119"]
[BlackFideId "4152956"]
[TimeControl "40/100 + 20/50 + 15 + 30s/move"]
[WhiteFideId "2905540"]

1.e4 {[%clk 01:40:56] [%emt 00:00:02]} 1...e5 {[%clk 01:40:51] [%emt 00:00:09]} 
2.Nf3 {[%clk 01:41:22] [%emt 00:00:04]} 2...Nc6 {[%clk 01:41:17] [%emt
00:00:05]} 3.Bb5 {[%clk 01:41:42] [%emt 00:00:10]} 3...a6 {[%clk 01:41:23] [%emt
00:00:24]} 4.Ba4 {[%clk 01:42:05] [%emt 00:00:07]} 4...Nf6 {[%clk 01:41:46]
[%emt 00:00:06]} 5.O-O {[%clk 01:42:30] [%emt 00:00:05]} 5...Be7 {[%clk
01:41:55] [%emt 00:00:22]} 6.Re1 {[%clk 01:42:26] [%emt 00:00:34]} 6...b5 
{[%clk 01:42:13] [%emt 00:00:12]} 7.Bb3 {[%clk 01:42:50] [%emt 00:00:06]} 
7...O-O {[%clk 01:42:34] [%emt 00:00:09]} 8.h3 {[%clk 01:42:15] [%emt 00:01:05]} 
8...Bb7 {[%clk 01:41:55] [%emt 00:01:09]} 9.d3 {[%clk 01:42:37] [%emt 00:00:07]} 
9...d5 {[%clk 01:39:49] [%emt 00:02:37]} 10.exd5 {[%clk 01:43:00] [%emt
00:00:08]} 10...Nxd5 {[%clk 01:40:15] [%emt 00:00:03]} 11.Nxe5 {[%clk 01:43:14]
[%emt 00:00:16]} 11...Nxe5 {[%clk 01:38:55] [%emt 00:01:51]} 12.Rxe5 {[%clk
01:43:36] [%emt 00:00:07]} 12...Qd6 {[%clk 01:39:21] [%emt 00:00:04]} 13.Re1 
{[%clk 01:43:56] [%emt 00:00:10]} 13...Rae8 {[%clk 01:36:56] [%emt 00:02:55]} 
14.Nd2 {[%clk 01:44:14] [%emt 00:00:11]} 14...c5 {[%clk 01:36:42] [%emt
00:00:45]} 15.Ne4 {[%clk 01:44:36] [%emt 00:00:07]} 15...Qc6 {[%clk 01:36:24]
[%emt 00:00:48]} 16.c4 {[%clk 01:44:55] [%emt 00:00:12]} 16...Nb6 {[%clk
01:36:32] [%emt 00:00:22]} 17.f3 {[%clk 01:45:15] [%emt 00:00:10]} 17...Bh4 
{[%clk 01:35:54] [%emt 00:01:08]} 18.Rf1 {[%clk 01:45:34] [%emt 00:00:11]} 
18...Qc7 {[%clk 01:35:22] [%emt 00:01:02]} 19.cxb5 {[%clk 01:38:59] [%emt
00:07:06]} 19...axb5 {[%clk 01:34:21] [%emt 00:01:30]} 20.a4 {[%clk 01:39:19]
[%emt 00:00:10]} 20...c4 {[%clk 01:34:22] [%emt 00:00:30]} 21.dxc4 {[%clk
01:39:16] [%emt 00:00:33]} 21...bxa4 {[%clk 01:32:27] [%emt 00:02:24]} 22.Bxa4 
{[%clk 01:34:37] [%emt 00:05:09]} 22...Nxa4 {[%clk 01:18:58] [%emt 00:14:00]} 
23.Rxa4 {[%clk 01:34:38] [%emt 00:00:29]} 23...Bc6 {[%clk 01:19:00] [%emt
00:00:28]} 24.Ra1 {[%clk 01:34:15] [%emt 00:00:53]} 24...Bxe4 {[%clk 01:16:43]
[%emt 00:02:46]} 25.fxe4 {[%clk 01:34:40] [%emt 00:00:05]} 25...Qxc4 {[%clk
01:15:17] [%emt 00:01:55]} 26.b3 {[%clk 01:35:07] [%emt 00:00:04]} 26...Qc6 
{[%clk 01:03:58] [%emt 00:11:50]} 27.Ba3 {[%clk 01:29:14] [%emt 00:06:22]} 
27...Be7 {[%clk 01:03:05] [%emt 00:01:23]} 28.Bxe7 {[%clk 01:26:23] [%emt
00:03:21]} 28...Rxe7 {[%clk 01:03:07] [%emt 00:00:28]} 29.Qd5 {[%clk 01:26:47]
[%emt 00:00:05]} 29...Qb6+ {[%clk 00:54:45] [%emt 00:08:53]} 30.Kh1 {[%clk
01:27:10] [%emt 00:00:06]} 30...Qe6 {[%clk 00:49:21] [%emt 00:05:55]} 31.Ra4 
{[%clk 01:22:54] [%emt 00:04:46]} 31...g6 {[%clk 00:47:54] [%emt 00:01:58]} 
32.Rd4 {[%clk 01:21:31] [%emt 00:01:52]} 32...Rb8 {[%clk 00:42:28] [%emt
00:05:56]} 33.b4 {[%clk 01:16:02] [%emt 00:05:58]} 33...Kg7 {[%clk 00:42:23]
[%emt 00:00:36]} 34.Qg5 {[%clk 01:05:17] [%emt 00:11:15]} 34...h6 {[%clk
00:34:27] [%emt 00:08:26]} 35.Qd2 {[%clk 01:01:11] [%emt 00:04:35]} 35...Qe5 
{[%clk 00:30:08] [%emt 00:04:50]} 36.Re1 {[%clk 00:56:12] [%emt 00:05:28]} 
36...Rb5 {[%clk 00:21:30] [%emt 00:09:08]} 37.Rd1 {[%clk 00:54:17] [%emt
00:02:25]} 37...Reb7 {[%clk 00:17:05] [%emt 00:04:56]} 38.Rc4 {[%clk 00:52:08]
[%emt 00:02:39]} 38...h5 {[%clk 00:09:50] [%emt 00:07:45]} 39.Rf1 {[%clk
00:50:33] [%emt 00:02:04]} 39...Ra7 {[%clk 00:05:18] [%emt 00:05:03]} 40.Qf2 
{[%clk 00:49:44] [%emt 00:01:18]} 40...Rab7 {[%clk 00:03:25] [%emt 00:02:24]} 
41.Qd2 {[%clk 00:47:39] [%emt 00:02:34]} 41...Ra7 {[%clk 00:47:54] [%emt
00:06:01]} 42.Rd4 {[%clk 01:37:04] [%emt 00:01:05]} 42...Rb6 {[%clk 00:32:39]
[%emt 00:15:47]} 43.Re1 {[%clk 01:12:32] [%emt 00:25:01]} 43...Ra2 {[%clk
00:29:04] [%emt 00:04:04]} 44.Qxa2 {[%clk 01:12:37] [%emt 00:00:26]} 44...Qxd4 
{[%clk 00:29:30] [%emt 00:00:04]} 45.Rf1 {[%clk 01:12:50] [%emt 00:00:17]} 
45...Rb7 {[%clk 00:14:11] [%emt 00:15:50]} 46.b5 {[%clk 01:10:35] [%emt
00:02:45]} 46...Qxe4 {[%clk 00:14:25] [%emt 00:00:15]} 47.Qb2+ {[%clk 01:08:28]
[%emt 00:02:37]} 47...Kh7 {[%clk 00:14:45] [%emt 00:00:10]} 48.b6 {[%clk
01:08:05] [%emt 00:00:52]} 48...Qc6 {[%clk 00:13:41] [%emt 00:01:35]} 49.Rb1 
{[%clk 01:06:52] [%emt 00:01:43]} 49...f6 {[%clk 00:08:49] [%emt 00:05:23]} 
50.Qd4 {[%clk 00:53:16] [%emt 00:14:05]} 50...Qe6 {[%clk 00:08:56] [%emt
00:00:22]} 51.Qd8 {[%clk 00:52:07] [%emt 00:01:39]} 51...Kg7 {[%clk 00:08:46]
[%emt 00:00:42]} 52.Qd4 {[%clk 00:49:59] [%emt 00:02:37]} 52...g5 {[%clk
00:08:04] [%emt 00:01:12]} 53.Qb4 {[%clk 00:40:56] [%emt 00:09:32]} 53...h4 
{[%clk 00:07:56] [%emt 00:00:38]} 54.Qc3 {[%clk 00:41:03] [%emt 00:00:23]} 
54...Kg6 {[%clk 00:07:39] [%emt 00:00:47]} 55.Qd3+ {[%clk 00:40:46] [%emt
00:00:47]} 55...Kh6 {[%clk 00:07:29] [%emt 00:00:41]} 56.Qb3 {[%clk 00:40:09]
[%emt 00:01:07]} 56...Qd6 {[%clk 00:05:38] [%emt 00:02:21]} 57.Qe3 {[%clk
00:40:16] [%emt 00:00:23]} 57...Kg7 {[%clk 00:05:37] [%emt 00:00:30]} 58.Qb3 
{[%clk 00:38:50] [%emt 00:01:56]} 58...Kh6 {[%clk 00:06:01] [%emt 00:00:07]} 
59.Qb4 {[%clk 00:39:11] [%emt 00:00:09]} 59...Qe6 {[%clk 00:06:09] [%emt
00:00:22]} 60.Qb3 {[%clk 00:38:16] [%emt 00:01:24]} 1/2-1/2